[Event "FIDE World Cup O10-B 2024"]
[Site "Batumi"]
[Date "2024.06.25"]
[Round "3.6"]
[White "Zhauynbay, Alimzhan"]
[Black "Kazimzade, Mahammad"]
[Result "0-1"]
[ECO "C54"]
[WhiteElo "1903"]
[BlackElo "1594"]
[Annotator "NA RC"]
[PlyCount "152"]
[EventDate "2024.06.23"]
[EventType "swiss"]
[EventCountry "GEO"]
[SourceTitle "playchess.com"]
[Source "ChessBase"]
[SourceQuality "1"]
[TimeControl "5400+30"]

1. e4 {[%emt 0:00:04]} e5 {[%emt 0:00:19]} 2. Nf3 {[%emt 0:00:06]} Nc6 {[%emt 0:00:19]} 3. Bc4 {[%emt 0:00:09]} Nf6 {[%emt 0:00:10]} 4. d3 {[%emt 0:00:05]} Bc5 {[%emt 0:00:44]} 5. c3 {[%emt 0:00:18]} d6 {[%emt 0:00:11]} 6. b4 {[%emt 0:00:22]} Bb6 {[%emt 0:01:08]} 7. a4 {[%emt 0:00:23]} a6 {[%emt 0:00:11]} 8. Nbd2 {[%emt 0:00:37]} O-O {[%emt 0:00:38]} 9. O-O {[%emt 0:02:18]} Ne7 {[%emt 0:06:10]} 10. Bb3 {[%emt 0:04:43]} Ng6 {[%emt 0:06:04]} 11. h3 {[%emt 0:08:28] C54: Giuoco Piano: 4 c3 Nf6, main lines with 5 d4 and 5 d3.} Ba7 {[%emt 0:02:47]} 12. a5 {[%emt 0:03:41]} c6 {[%emt 0:02:25]} 13. Re1 {[%emt 0:10:16]} Qc7 {[%emt 0:03:59]} 14. Nf1 {[%emt 0:01:59]} d5 {[%emt 0:01:46]} 15. Ng3 {[%emt 0:04:56]} h6 {[%emt 0:02:19]} 16. Ra2 {[%emt 0:01:49]} Bd7 {[%emt 0:03:12]} 17. Rd2 {[%emt 0:03:43]} Rad8 {[%emt 0:01:18]} 18. Bb2 {[%emt 0:03:43]} Rfe8 {[%emt 0:02:27]} (18... Qc8 $1 $15 {is more appropriate.} 19. c4 Bxh3 20. Bxe5 (20. gxh3 $2 {loses.} Qxh3 21. c5 Nf4 $19) 20... Nxe5 21. Nxe5 Bd4 22. exd5 Qb8 23. gxh3 (23. dxc6 Bxe5 24. gxh3 Bxg3 $17) 23... Bxe5) 19. Qc2 {[%emt 0:05:14]} (19. c4 $11) 19... Nf4 {[%emt 0:03:32]} 20. d4 $19 {[%emt 0:06:15]} (20. Kh2 $17) 20... exd4 {[%emt 0:07:27]} 21. cxd4 {[%emt 0:02:57]} dxe4 {[%emt 0:02:05]} 22. Nxe4 {[%emt 0:00:54]} N6d5 {[%emt 0:02:18]} 23. Ne5 {[%emt 0:07:05]} Bf5 {[%emt 0:07:50]} 24. Nf6+ {[%emt 0:16:37]} gxf6 {[%emt 0:02:26]} 25. Qxf5 {[%emt 0:00:05]} fxe5 {[%emt 0:00:13]} 26. dxe5 {[%emt 0:00:11]} Qc8 {[%emt 0:09:10]} 27. Qe4 {[%emt 0:01:16]} Re6 {[%emt 0:02:22]} 28. Bd1 {[%emt 0:06:08]} h5 {[%emt 0:03:12]} 29. Kh2 {[%emt 0:00:48]} Rg6 {[%emt 0:02:42]} 30. Bf3 {[%emt 0:00:32]} Re8 {[%emt 0:00:46]} 31. Rc2 {[%emt 0:02:36]} Bb8 {[%emt 0:01:10]} 32. Qd4 {[%emt 0:02:51]} Qf5 {[%emt 0:01:53]} 33. Be4 {[%emt 0:00:44]} Qg5 {[%emt 0:00:09]} 34. g3 {[%emt 0:00:21]} Bxe5 {[%emt 0:03:50]} 35. Bxg6 {[%emt 0:00:26]} Nxg6 {[%emt 0:01:03]} 36. Qd1 {[%emt 0:01:13]} Nxb4 {[%emt 0:01:14]} 37. Rce2 {[%emt 0:00:17]} Rd8 {[%emt 0:00:58]} 38. Qb3 {[%emt 0:02:10]} Bxb2 {[%emt 0:05:53]} 39. Re8+ {[%emt 0:00:29]} Rxe8 {[%emt 0:00:43]} 40. Rxe8+ {[%emt 0:00:06]} Kh7 {[%emt 0:00:29]} 41. Qxb4 {[%emt 0:01:06]} Qb5 {[%emt 0:01:38]} 42. Qd2 {[%emt 0:00:34]} Bg7 {[%emt 0:00:34]} 43. Qa2 {[%emt 0:00:25]} Qf5 {[%emt 0:01:23]} 44. h4 {[%emt 0:00:50]} Bd4 {[%emt 0:00:49]} 45. Kg1 {[%emt 0:00:55]} Bc3 {[%emt 0:01:05]} 46. Rb8 {[%emt 0:00:41]} Ne5 {[%emt 0:01:23]} 47. Rxb7 {[%emt 0:00:33]} Bd4 {[%emt 0:00:31]} 48. Rc7 {[%emt 0:01:15]} Qf3 {[%emt 0:02:20]} 49. Kf1 {[%emt 0:01:06]} Kg7 {[%emt 0:00:28]} 50. Qd2 {[%emt 0:00:14]} Qh1+ {[%emt 0:01:14]} 51. Ke2 {[%emt 0:00:05]} Qe4+ {[%emt 0:00:26]} 52. Kf1 {[%emt 0:00:12]} Nf3 {[%emt 0:00:23]} 53. Qa2 {[%emt 0:00:45]} Ne5 {[%emt 0:00:50]} 54. Qd2 {[%emt 0:00:07]} Nf3 {[%emt 0:00:49]} 55. Qa2 {[%emt 0:00:08]} Qg6 {[%emt 0:00:32]} 56. Qe2 {[%emt 0:00:24]} Be5 {[%emt 0:02:04]} 57. Rb7 {[%emt 0:00:21]} Qg4 {[%emt 0:00:29]} 58. Qa2 {[%emt 0:00:34]} Qh3+ {[%emt 0:01:13]} 59. Ke2 {[%emt 0:00:05]} Nd4+ {[%emt 0:00:10]} 60. Ke3 {[%emt 0:00:36]} Nf5+ {[%emt 0:00:57]} 61. Kd2 {[%emt 0:00:23]} Nd6 {[%emt 0:00:13]} 62. Rb3 {[%emt 0:00:47]} Qf5 {[%emt 0:00:18]} 63. Ke1 {[%emt 0:01:00]} Ne4 {[%emt 0:00:33]} 64. Qc2 {[%emt 0:00:14]} Bd4 {[%emt 0:02:09]} 65. f3 {[%emt 0:01:26]} Qxa5+ {[%emt 0:00:07]} 66. Kf1 {[%emt 0:00:18]} Qa1+ {[%emt 0:00:33]} 67. Ke2 {[%emt 0:00:33]} Nxg3+ {[%emt 0:00:26]} 68. Kd3 {[%emt 0:00:07]} Bf6 {[%emt 0:01:07]} 69. Rb4 {[%emt 0:00:24]} Qf1+ {[%emt 0:00:29]} 70. Ke3 {[%emt 0:00:05]} Qe1+ {[%emt 0:00:07]} 71. Kd3 {[%emt 0:00:18]} Qxb4 {[%emt 0:00:05]} 72. Qg2 {[%emt 0:00:05]} Qxh4 {[%emt 0:00:04]} 73. f4 {[%emt 0:00:05]} Qxf4 {[%emt 0:00:04]} 74. Qxc6 {[%emt 0:00:05]} Qd4+ {[%emt 0:00:04]} 75. Kc2 {[%emt 0:00:04]} Ne4 {[%emt 0:00:10]} 76. Qc8 {[%emt 0:01:19]} Qc3+ {[%emt 0:00:06]} 0-1

[Event "FIDE World Cup O10-B 2024"]
[Site "Batumi"]
[Date "2024.06.25"]
[Round "3.7"]
[White "Rahul Ramakrishnan"]
[Black "AlJamaat, Khaled"]
[Result "1-0"]
[ECO "D48"]
[WhiteElo "1838"]
[BlackElo "1644"]
[Annotator "NA RC"]
[PlyCount "201"]
[EventDate "2024.06.23"]
[EventType "swiss"]
[EventCountry "GEO"]
[SourceTitle "playchess.com"]
[Source "ChessBase"]
[SourceQuality "1"]
[TimeControl "5400+30"]

1. d4 {[%emt 0:00:21]} d5 {[%emt 0:00:18]} 2. c4 {[%emt 0:00:28]} dxc4 {[%emt 0:00:09]} 3. e3 {[%emt 0:00:16]} a6 {[%emt 0:00:25]} 4. Bxc4 {[%emt 0:00:23]} Nf6 {[%emt 0:00:22]} 5. Nc3 {[%emt 0:00:33]} e6 {[%emt 0:00:32]} 6. Nf3 {[%emt 0:01:42]} b5 {[%emt 0:01:25]} 7. Bd3 {[%emt 0:01:00]} c5 {[%emt 0:00:51]} 8. O-O {[%emt 0:01:13]} Nbd7 {[%emt 0:00:57]} 9. b3 {[%emt 0:13:35]} Bb7 {[%emt 0:04:41]} 10. Bb2 {[%emt 0:08:55]} Be7 {[%emt 0:03:42]} 11. Qe2 {[%emt 0:00:55]} O-O {[%emt 1:22:38]} 12. Rfd1 {[%emt 0:00:55]} Qb6 {[%emt 0:00:00]} 13. Rac1 {[%emt 0:07:26]} Rfd8 {[%emt 0:00:00]} 14. Bb1 {[%emt 0:11:30]} Rac8 {[%emt 0:00:00]} 15. h3 {[%emt 0:11:43]} h6 {[%emt 0:00:00]} 16. Rc2 {[%emt 0:07:53]} cxd4 {[%emt 0:00:00]} 17. exd4 {[%emt 0:00:45]} Nd5 {[%emt 0:00:00]} 18. Nxd5 {[%emt 0:03:08]} Bxd5 {[%emt 0:00:00]} 19. Qd3 {[%emt 0:05:12]} Nf6 {[%emt 0:00:00]} 20. Re2 {[%emt 0:02:13]} Qb7 {[%emt 0:00:00]} 21. Re3 {[%emt 0:20:54]} Bd6 {[%emt 0:00:00]} 22. g3 {[%emt 0:00:00]} Bb8 {[%emt 0:00:00]} 23. Kh2 {[%emt 0:00:00]} Qa8 {[%emt 0:00:00]} 24. Ba3 {[%emt 0:00:00]} Qb7 {[%emt 0:00:00]} 25. Ne5 {[%emt 0:00:00]} Be4 {[%emt 0:00:00]} 26. Qe2 {[%emt 0:00:48]} Bxb1 {[%emt 0:00:00]} 27. Rxb1 {[%emt 0:00:02]} Nd5 {[%emt 0:00:00]} 28. Qf3 {[%emt 0:01:09]} f6 {[%emt 0:00:00]} 29. Nd3 {[%emt 0:00:30]} Qf7 {[%emt 0:00:00]} 30. Ree1 {[%emt 0:00:19]} Nc3 {[%emt 0:00:00]} 31. Rbc1 {[%emt 0:00:17]} Nd5 {[%emt 0:00:00]} 32. Nc5 {[%emt 0:00:24]} Rc6 {[%emt 0:00:00]} 33. b4 {[%emt 0:02:31]} e5 {[%emt 0:11:00]} 34. dxe5 {[%emt 0:00:00]} Bxe5 {[%emt 0:00:00]} 35. Rcd1 {[%emt 0:00:00]} Rdd6 {[%emt 0:00:00]} 36. Rd3 {[%emt 0:00:24]} Nc7 {[%emt 0:00:00]} 37. Rde3 {[%emt 0:00:49]} Rd5 {[%emt 0:00:00]} 38. Rd3 {[%emt 0:00:38]} Rcd6 {[%emt 0:00:00]} 39. Rxd5 {[%emt 0:00:27]} Rxd5 {[%emt 0:00:00]} 40. Qe2 {[%emt 0:00:37]} Bc3 {[%emt 0:00:00]} 41. Rd1 {[%emt 0:00:26]} Bd4 {[%emt 0:00:00]} 42. Rd3 {[%emt 0:01:09]} a5 {[%emt 0:00:00]} 43. Nb3 {[%emt 0:00:00]} axb4 {[%emt 0:00:00]} 44. Bxb4 {[%emt 0:00:18]} Bb6 {[%emt 0:00:00]} 45. Rc3 {[%emt 0:00:38]} Rf5 {[%emt 0:00:00]} 46. Rf3 {[%emt 0:00:29]} Re5 {[%emt 0:00:00]} 47. Qxe5 {[%emt 0:00:28]} fxe5 {[%emt 0:00:00]} 48. Rxf7 {[%emt 0:00:01]} Kxf7 {[%emt 0:00:00]} 49. Kg2 {[%emt 0:00:10]} g6 {[%emt 0:00:00]} 50. Bd2 {[%emt 0:00:50]} h5 {[%emt 0:08:30]} 51. Kf3 {[%emt 0:00:15]} Nd5 {[%emt 0:00:00]} 52. Ke2 {[%emt 0:01:51]} Ke6 {[%emt 0:00:00]} 53. f3 {[%emt 0:00:00]} Nf6 {[%emt 0:00:00]} 54. Bg5 {[%emt 0:00:05]} Nd5 {[%emt 0:00:00]} 55. Bd2 {[%emt 0:00:32]} Nf6 {[%emt 0:00:00]} 56. Be3 {[%emt 0:00:31]} Bxe3 {[%emt 0:00:00]} 57. Kxe3 {[%emt 0:00:02]} Nd5+ {[%emt 0:00:00]} 58. Kd2 {[%emt 0:00:47]} Kd6 {[%emt 0:00:00]} 59. a3 {[%emt 0:00:32]} Nb6 {[%emt 0:00:00]} 60. Kc3 {[%emt 0:00:09]} Nd5+ {[%emt 0:00:00]} 61. Kd3 {[%emt 0:00:40]} Nb6 {[%emt 0:00:00]} 62. Nd2 {[%emt 0:00:42]} Kd5 {[%emt 0:00:00]} 63. Kc3 {[%emt 0:00:07]} Kc6 {[%emt 0:00:00]} 64. Ne4 {[%emt 0:00:57]} Nd5+ {[%emt 0:07:00]} 65. Kd3 {[%emt 0:00:38]} Nb6 {[%emt 0:00:00]} 66. Kc3 {[%emt 0:00:25]} Nd5+ {[%emt 0:01:00]} 67. Kb3 {[%emt 0:00:20]} Nc7 {[%emt 0:00:00]} 68. Nc3 {[%emt 0:00:58]} Kc5 {[%emt 0:00:00]} 69. Ne4+ {[%emt 0:00:16]} Kb6 {[%emt 0:00:00]} 70. h4 {[%emt 0:00:31]} Ne6 {[%emt 0:00:00]} 71. Kc3 {[%emt 0:00:26]} Nc7 {[%emt 0:00:00]} 72. Nf6 {[%emt 0:00:20]} Kc5 {[%emt 0:00:00]} 73. Nd7+ {[%emt 0:00:32]} Kd6 {[%emt 0:00:00]} 74. Nf8 {[%emt 0:00:27]} Nd5+ {[%emt 0:04:00]} 75. Kd3 {[%emt 0:00:52]} Ne7 {[%emt 0:00:00]} 76. g4 {[%emt 0:01:11]} hxg4 {[%emt 0:00:00]} 77. fxg4 {[%emt 0:00:00]} Kd5 {[%emt 0:00:00]} 78. Nd7 {[%emt 0:00:01]} Kd6 {[%emt 0:00:00]} 79. Nf6 {[%emt 0:00:15]} Ke6 {[%emt 0:00:00]} 80. Ne4 {[%emt 0:00:06]} Kd5 {[%emt 0:00:00]} 81. Nc3+ {[%emt 0:00:15]} Kc5 {[%emt 0:00:00]} 82. Ke4 {[%emt 0:02:23]} Kc4 {[%emt 0:00:00]} 83. Nd1 {[%emt 0:00:00]} Nc6 {[%emt 0:00:00]} 84. h5 {[%emt 0:00:00]} gxh5 {[%emt 0:00:00]} 85. gxh5 {[%emt 0:00:00]} Ne7 {[%emt 0:00:00]} 86. Kxe5 {[%emt 0:00:00]} Kb3 {[%emt 0:00:00]} 87. h6 {[%emt 0:00:00]} Ng6+ {[%emt 0:00:00]} 88. Kf6 {[%emt 0:00:00]} Nf8 {[%emt 0:00:00]} 89. Kg7 {[%emt 0:00:22]} Ne6+ {[%emt 0:00:00]} 90. Kg8 {[%emt 0:00:05]} Ng5 {[%emt 0:00:00]} 91. Nf2 {[%emt 0:00:32]} Kxa3 {[%emt 0:00:00]} 92. Nh3 {[%emt 0:00:16]} Ne4 {[%emt 0:00:00]} 93. Kg7 {[%emt 0:04:15]} Nd6 {[%emt 0:00:00]} 94. h7 {[%emt 0:00:30]} Nf5+ {[%emt 0:00:00]} 95. Kf6 {[%emt 0:00:00]} Nd4 {[%emt 0:00:00]} 96. h8=Q {[%emt 0:00:00]} b4 {[%emt 0:00:00]} 97. Qa8+ {[%emt 0:00:00]} Kb2 {[%emt 0:00:00]} 98. Ke5 {[%emt 0:00:00]} Nc2 {[%emt 0:00:00]} 99. Nf4 {[%emt 0:00:00]} b3 {[%emt 0:00:00]} 100. Nd3+ {[%emt 0:00:00]} Kb1 {[%emt 0:00:00]} 101. Qh1+ {[%emt 0:00:00]} 1-0

[Event "FIDE World Cup O10-B 2024"]
[Site "Batumi"]
[Date "2024.06.25"]
[Round "3.8"]
[White "Kvaratskhelia, Giorgi"]
[Black "Lazarev, Egor"]
[Result "0-1"]
[ECO "B12"]
[WhiteElo "1548"]
[BlackElo "1683"]
[Annotator "NA RC"]
[PlyCount "112"]
[EventDate "2024.06.23"]
[EventType "swiss"]
[EventCountry "GEO"]
[SourceTitle "playchess.com"]
[Source "ChessBase"]
[SourceQuality "1"]
[TimeControl "5400+30"]

1. e4 {[%emt 0:00:09]} c6 {[%emt 0:00:14]} 2. d4 {[%emt 0:00:07]} d5 {[%emt 0:00:10]} 3. e5 {[%emt 0:00:32]} c5 {[%emt 0:00:04]} 4. c3 {[%emt 0:01:21]} Nc6 {[%emt 0:00:04]} 5. Nf3 {[%emt 0:00:06]} cxd4 {[%emt 0:00:08]} 6. cxd4 {[%emt 0:00:05]} Bg4 {[%emt 0:00:10]} 7. Bb5 {[%emt 0:00:18]} e6 {[%emt 0:04:42]} 8. Qa4 {[%emt 0:06:31]} Qb6 {[%emt 0:02:35]} 9. Nbd2 {[%emt 0:04:56]} a6 {[%emt 1:26:53]} 10. Bxc6+ {[%emt 0:00:13]} bxc6 {[%emt 0:00:00]} 11. O-O {[%emt 0:00:35]} Qb5 {[%emt 0:00:00]} 12. Qxb5 {[%emt 0:05:37]} cxb5 {[%emt 0:00:00]} 13. Nb3 {[%emt 0:00:30]} Bxf3 {[%emt 0:00:00]} 14. gxf3 {[%emt 0:00:41]} Ne7 {[%emt 0:00:00]} 15. Be3 {[%emt 0:01:19]} Nc6 {[%emt 0:00:00]} 16. Rac1 {[%emt 0:00:33]} Kd7 {[%emt 0:00:00]} 17. Bd2 {[%emt 0:09:27]} Be7 {[%emt 0:00:00]} 18. Ba5 {[%emt 0:03:07]} Rab8 {[%emt 0:00:00]} 19. Rxc6 {[%emt 0:03:10]} Kxc6 {[%emt 0:00:00]} 20. Rc1+ {[%emt 0:00:06]} Kd7 {[%emt 0:00:00]} 21. Rc7+ {[%emt 0:00:08]} Ke8 {[%emt 0:00:00]} 22. Nc5 {[%emt 0:00:52]} Bd8 {[%emt 0:06:30]} 23. Nxa6 {[%emt 0:02:46]} Bxc7 {[%emt 0:00:00]} 24. Nxc7+ {[%emt 0:00:04]} Kd7 {[%emt 0:00:00]} 25. Na6 {[%emt 0:00:15]} Ra8 {[%emt 0:00:00]} 26. Nc5+ {[%emt 0:00:09]} Kc6 {[%emt 0:00:00]} 27. b4 {[%emt 0:00:12]} Ra7 {[%emt 0:00:00]} 28. Kf1 {[%emt 0:00:21]} Rha8 {[%emt 0:00:00]} 29. Nb3 {[%emt 0:00:10]} Rxa5 {[%emt 0:00:00]} 30. Nxa5+ {[%emt 0:00:28]} Rxa5 {[%emt 0:00:00]} 31. bxa5 {[%emt 0:00:04]} b4 {[%emt 0:00:00]} 32. Ke2 {[%emt 0:00:10]} Kb5 {[%emt 0:00:00]} 33. Kd3 {[%emt 0:02:38]} Kxa5 {[%emt 0:00:00]} 34. Kc2 {[%emt 0:00:08]} Ka4 {[%emt 0:00:00]} 35. Kb2 {[%emt 0:00:27]} g5 {[%emt 0:00:00]} 36. f4 {[%emt 0:01:03]} g4 {[%emt 0:00:00]} 37. Kb1 {[%emt 0:01:24]} Ka3 {[%emt 0:00:00]} 38. Ka1 {[%emt 0:00:11]} b3 {[%emt 0:00:00]} 39. axb3 {[%emt 0:00:42]} Kxb3 {[%emt 0:00:00]} 40. Kb1 {[%emt 0:00:08]} Kc3 {[%emt 0:00:00]} 41. Kc1 {[%emt 0:00:05]} Kxd4 {[%emt 0:00:00]} 42. Kd2 {[%emt 0:00:04]} Ke4 {[%emt 0:00:00]} 43. Ke2 {[%emt 0:00:14]} Kxf4 {[%emt 0:00:00]} 44. Kd2 {[%emt 0:00:06]} Kxe5 {[%emt 0:00:00]} 45. Ke3 {[%emt 0:00:05]} d4+ {[%emt 0:00:00]} 46. Kd3 {[%emt 0:00:05]} Kd5 {[%emt 0:00:00]} 47. Kd2 {[%emt 0:00:06]} Ke4 {[%emt 0:00:00]} 48. Ke2 {[%emt 0:00:06]} d3+ {[%emt 0:00:00]} 49. Kd2 {[%emt 0:00:05]} Kd4 {[%emt 0:00:00]} 50. Kd1 {[%emt 0:00:06]} e5 {[%emt 0:00:00]} 51. h4 {[%emt 0:00:22]} gxh3 {[%emt 0:00:00]} 52. f4 {[%emt 0:00:06]} h2 {[%emt 0:00:00]} 53. fxe5 {[%emt 0:00:07]} h1=Q+ {[%emt 0:00:00]} 54. Kd2 {[%emt 0:00:05]} Qg2+ {[%emt 0:00:00]} 55. Kd1 {[%emt 0:00:06]} Qe2+ {[%emt 0:00:00]} 56. Kc1 {[%emt 0:00:08]} Qc2# {[%emt 0:00:00]} 0-1

[Event "FIDE World Cup O10-B 2024"]
[Site "Batumi"]
[Date "2024.06.25"]
[Round "3.9"]
[White "Bergmann, Rafael Antonio"]
[Black "Akramov, Khusan"]
[Result "0-1"]
[ECO "B36"]
[WhiteElo "1743"]
[BlackElo "1477"]
[Annotator "NA RC"]
[PlyCount "102"]
[EventDate "2024.06.23"]
[EventType "swiss"]
[EventCountry "GEO"]
[SourceTitle "playchess.com"]
[Source "ChessBase"]
[SourceQuality "1"]
[TimeControl "5400+30"]

1. e4 {[%emt 0:00:02]} c5 {[%emt 0:00:03]} 2. Nf3 {[%emt 0:00:08]} g6 {[%emt 0:00:03]} 3. d4 {[%emt 0:00:33]} cxd4 {[%emt 0:00:06]} 4. Nxd4 {[%emt 0:00:11]} Nc6 {[%emt 0:00:06]} 5. c4 {[%emt 0:00:33]} Nf6 {[%emt 0:00:03]} 6. Nc3 {[%emt 0:00:11]} Nxd4 {[%emt 0:00:04]} 7. Qxd4 {[%emt 0:00:14]} d6 {[%emt 0:00:03]} 8. Be2 {[%emt 0:03:16]} Bg7 {[%emt 0:00:04]} 9. Be3 {[%emt 0:01:46]} O-O {[%emt 0:00:05]} 10. Qd1 {[%emt 1:28:36]} a5 {[%emt 0:00:26]} 11. O-O {[%emt 0:00:00]} Bd7 {[%emt 0:00:27]} 12. f3 {[%emt 0:00:00]} Bc6 {[%emt 0:00:22]} 13. Kh1 {[%emt 0:00:00]} Nd7 {[%emt 0:01:20]} 14. Qd2 {[%emt 0:00:00]} a4 {[%emt 0:00:13]} 15. a3 {[%emt 0:00:00]} Nc5 {[%emt 0:00:17]} 16. Bd1 {[%emt 0:00:00]} Qa5 {[%emt 1:34:48]} 17. Bd4 {[%emt 0:00:00]} Rfc8 {[%emt 0:00:00]} 18. Bxg7 {[%emt 0:00:00]} Kxg7 {[%emt 0:00:00]} 19. Qd4+ {[%emt 0:00:00]} f6 {[%emt 0:00:00]} 20. Nd5 {[%emt 0:05:00]} e5 {[%emt 0:00:00]} 21. Qe3 {[%emt 0:00:00]} Bxd5 {[%emt 0:00:00]} 22. cxd5 {[%emt 0:00:00]} Qb5 {[%emt 0:03:00]} 23. Qe2 {[%emt 0:00:00]} Qxe2 {[%emt 0:00:00]} 24. Bxe2 {[%emt 0:02:00]} Nb3 {[%emt 0:01:00]} 25. Rad1 {[%emt 0:00:30]} Rc2 {[%emt 0:00:30]} 26. Rfe1 {[%emt 0:00:30]} Rxb2 {[%emt 0:00:00]} 27. Rb1 {[%emt 0:00:00]} Ra2 {[%emt 0:01:00]} 28. Bc4 {[%emt 0:01:00]} Rxa3 {[%emt 0:00:00]} 29. Re3 {[%emt 0:00:00]} Rc8 {[%emt 0:00:00]} 30. Bxb3 {[%emt 0:00:00]} axb3 {[%emt 0:00:00]} 31. h3 {[%emt 0:01:30]} b5 {[%emt 0:00:00]} 32. Rexb3 {[%emt 0:00:00]} Rxb3 {[%emt 0:00:00]} 33. Rxb3 {[%emt 0:01:00]} Rb8 {[%emt 0:00:00]} 34. Kg1 {[%emt 0:00:00]} Kf7 {[%emt 0:03:30]} 35. Kf2 {[%emt 0:01:00]} Ke7 {[%emt 0:00:00]} 36. Ke3 {[%emt 0:00:00]} Kd7 {[%emt 0:00:00]} 37. Kd3 {[%emt 0:00:00]} Kc7 {[%emt 0:00:00]} 38. Rb2 {[%emt 0:01:30]} Kb6 {[%emt 0:02:00]} 39. Kc3 {[%emt 0:00:30]} Rc8+ {[%emt 0:00:30]} 40. Kb3 {[%emt 0:00:30]} f5 {[%emt 0:00:00]} 41. Re2 {[%emt 0:00:00]} Rc4 {[%emt 0:01:00]} 42. g4 {[%emt 0:01:00]} f4 {[%emt 0:00:00]} 43. Re1 {[%emt 0:00:30]} Kc5 {[%emt 0:00:00]} 44. Rd1 {[%emt 0:00:30]} b4 {[%emt 0:01:30]} 45. Kb2 {[%emt 0:00:30]} Rc3 {[%emt 0:00:30]} 46. Rc1 {[%emt 0:00:30]} Rxc1 {[%emt 0:00:00]} 47. Kxc1 {[%emt 0:00:30]} Kc4 {[%emt 0:00:00]} 48. Kb2 {[%emt 0:00:00]} b3 {[%emt 0:00:00]} 49. g5 {[%emt 0:00:00]} Kb4 {[%emt 0:00:00]} 50. Kb1 {[%emt 0:00:00]} Kc3 {[%emt 0:00:00]} 51. Kc1 {[%emt 0:00:00]} Kd3 {[%emt 0:03:00]} 0-1

[Event "FIDE World Cup O10-B 2024"]
[Site "Batumi"]
[Date "2024.06.25"]
[Round "3.10"]
[White "Jibladze, Nikoloz"]
[Black "Makhsatuly, Rakhim"]
[Result "1-0"]
[ECO "B41"]
[WhiteElo "1612"]
[BlackElo "1630"]
[Annotator "NA RC"]
[PlyCount "69"]
[EventDate "2024.06.23"]
[EventType "swiss"]
[EventCountry "GEO"]
[SourceTitle "playchess.com"]
[Source "ChessBase"]
[SourceQuality "1"]
[TimeControl "5400+30"]

1. e4 {[%emt 0:00:09]} c5 {[%emt 0:00:04]} 2. Nf3 {[%emt 0:00:09]} a6 {[%emt 0:00:02]} 3. c4 {[%emt 0:01:29]} Nc6 {[%emt 0:00:05]} 4. d4 {[%emt 0:00:44]} cxd4 {[%emt 0:00:04]} 5. Nxd4 {[%emt 0:00:18]} e6 {[%emt 0:00:06]} 6. Nc3 {[%emt 0:00:53]} Qc7 {[%emt 0:00:21]} 7. Be3 {[%emt 0:02:31]} Nf6 {[%emt 0:00:24]} 8. Be2 {[%emt 0:00:57]} Bb4 {[%emt 0:00:45]} 9. Qc2 {[%emt 0:05:19]} Qe5 {[%emt 0:11:33]} 10. Nxc6 {[%emt 0:04:50]} bxc6 {[%emt 0:00:38]} 11. O-O {[%emt 0:05:35]} Bxc3 {[%emt 0:13:46]} 12. bxc3 {[%emt 0:01:31]} Qxe4 {[%emt 0:00:35]} 13. Bd3 {[%emt 0:00:13]} Qe5 {[%emt 0:00:01]} 14. Bd4 {[%emt 0:00:27]} Qc7 {[%emt 0:00:02]} 15. h3 {[%emt 0:01:44]} c5 {[%emt 0:02:10]} 16. Be3 {[%emt 0:01:47]} Bb7 {[%emt 0:02:47]} 17. Rab1 {[%emt 0:00:59]} d5 {[%emt 0:02:24]} 18. Bxc5 {[%emt 0:06:38]} dxc4 {[%emt 0:08:56]} 19. Qa4+ {[%emt 0:01:03]} Bc6 {[%emt 0:00:01]} 20. Qxc4 {[%emt 0:01:25]} Bb5 {[%emt 0:00:13]} 21. Rxb5 {[%emt 0:01:20]} axb5 {[%emt 0:04:19]} 22. Qb4 {[%emt 0:04:41]} O-O-O {[%emt 0:52:14]} 23. Bxb5 {[%emt 0:02:32]} Rd5 {[%emt 0:00:00]} 24. Be3 {[%emt 0:08:27]} Nd7 {[%emt 0:00:00]} 25. c4 {[%emt 0:02:46]} Rd6 {[%emt 0:00:00]} 26. c5 {[%emt 0:01:10]} Rd5 {[%emt 0:00:00]} 27. c6 {[%emt 0:00:54]} Nb8 {[%emt 0:00:00]} 28. Rb1 {[%emt 0:00:55]} Kd8 {[%emt 0:00:00]} 29. Qc4 {[%emt 0:07:19]} Ke7 {[%emt 0:00:00]} 30. Bf4 {[%emt 0:02:26]} Qb6 {[%emt 0:00:00]} 31. Be3 {[%emt 0:04:35]} Qc7 {[%emt 0:00:00]} 32. Ba4 {[%emt 0:00:19]} Qc8 {[%emt 0:00:00]} 33. Rb7+ {[%emt 0:00:58]} Kf6 {[%emt 0:00:58]} 34. Qh4+ {[%emt 0:01:09]} Kg6 {[%emt 0:01:28]} 35. Bc2+ {[%emt 0:00:26]} 1-0